bitfinex/quotes_ETHUSD_20250630
["timestamp","ask_amount","ask_price","bid_price","bid_amount"]
[1751322356214,4.81979909,2493.4,2493.2,10.0]
[1751322356710,0.8092,2493.4,2493.0,0.02]
[1751322356918,4.01089626,2493.3,2493.0,0.02]
[1751322357089,5.01986608,2493.4,2493.0,0.02]
[1751322357608,5.01986608,2493.4,2493.0,10.02]
[1751322357917,1.0092,2493.4,2493.0,0.02]
[1751322358480,5.019856,2493.4,2493.0,0.02]
[1751322358817,6.57959082,2493.4,2493.0,0.02]
[1751322359483,2.56893482,2493.4,2493.0,0.02]
[1751322360323,1.0092,2493.4,2493.0,14.0311893]
[1751322360620,1.0092,2493.4,2493.0,10.02]
[1751322360807,5.01980827,2493.4,2493.0,10.02]
[1751322361010,1.0092,2493.4,2493.0,10.02]
[1751322361321,5.01982917,2493.4,2493.0,10.02]
[1751322361522,1.0092,2493.4,2493.0,10.02]
[1751322365824,1.0092,2493.4,2493.0,14.03121319]
[1751322366021,0.2,2493.4,2493.1,10.20572068]
[1751322367723,0.01,2493.5,2493.3,10.98974889]
[1751322369341,0.01,2493.5,2493.4,4.01058795]
[1751322370342,0.01,2493.5,2493.3,11.18967299]
[1751322370643,0.01,2493.5,2493.4,4.01058795]
[1751322373246,0.01,2493.5,2493.3,0.2]
[1751322373546,0.01,2493.5,2493.3,4.21074749]
[1751322374618,0.01,2493.5,2493.3,0.2]
[1751322375651,4.02044823,2493.5,2493.3,0.2]
[1751322376337,0.01,2493.5,2493.3,0.2]
[1751322376843,4.02045047,2493.5,2493.3,0.2]
[1751322377234,0.01,2493.5,2493.3,0.2]
[1751322378454,4.02042904,2493.5,2493.3,0.2]
[1751322378656,0.01,2493.5,2493.3,0.2]
[1751322382981,0.01,2493.5,2493.4,6.96810009]
[1751322383340,0.01,2493.5,2493.4,11.17868804]
[1751322389484,0.01,2493.5,2493.4,21.17868804]
[1751322391854,0.01,2493.9,2493.8,6.94860009]
[1751322392181,0.01,2493.9,2493.8,10.95854475]
[1751322392384,0.01,2493.9,2493.8,13.11000066]
[1751322395201,0.01,2493.9,2493.8,9.100056]
[1751322395370,0.01,2493.9,2493.8,13.11000066]
[1751322396070,0.01,2493.9,2493.8,9.100056]
[1751322396799,0.01,2493.9,2493.8,13.11000066]
[1751322399602,0.01,2493.9,2493.8,9.100056]
[1751322400302,0.01,2493.9,2493.8,13.11000066]
[1751322401373,0.01,2493.9,2493.7,10.0]
[1751322401776,0.01,2493.9,2493.6,0.2]
[1751322402475,0.01,2493.9,2493.6,10.2]
[1751322402697,0.01,2493.9,2493.6,0.2]
[1751322403075,4.01980938,2493.9,2493.6,0.2]
[1751322404210,0.01,2493.9,2493.6,0.2]
[1751322404705,0.7701,2493.8,2493.4,0.02]
[1751322404912,0.2,2493.7,2493.4,0.02]
[1751322405107,4.21017906,2493.7,2493.4,0.02]
[1751322409180,0.2,2493.7,2493.4,0.02]
[1751322409514,4.81382711,2493.5,2493.4,0.02]
[1751322411992,4.2103604,2493.6,2493.4,0.02]
[1751322412197,0.2,2493.6,2493.4,0.02]
[1751322412415,4.21028888,2493.6,2493.4,0.02]
[1751322422341,0.2,2493.6,2493.4,0.02]
[1751322422845,4.21027453,2493.6,2493.4,0.02]
[1751322424070,6.744,2493.6,2493.4,0.02]
[1751322424266,10.754283,2493.6,2493.4,0.02]
[1751322425363,6.744,2493.6,2493.4,0.02]
[1751322426165,10.75427765,2493.6,2493.4,0.02]
[1751322426472,6.744,2493.6,2493.4,0.02]
[1751322426765,10.75427834,2493.6,2493.4,0.02]
[1751322427270,6.744,2493.6,2493.4,0.02]
[1751322428027,0.2,2493.6,2493.4,0.02]
[1751322428241,0.01,2493.7,2493.6,4.83516628]
[1751322428451,0.01,2493.7,2493.6,14.83516628]
[1751322433337,0.01,2493.7,2493.6,10.8249]
[1751322434060,0.01,2493.7,2493.6,10.0]
[1751322434669,0.01,2493.7,2493.5,0.2]
[1751322434865,0.01,2493.7,2493.5,1.39023406]
[1751322436468,0.01,2493.7,2493.5,7.58503415]
[1751322437678,0.01,2493.7,2493.5,11.59544153]
[1751322439884,0.01,2493.7,2493.5,7.58503415]
[1751322440973,0.01,2493.7,2493.6,4.01026628]
[1751322441169,0.01,2493.7,2493.6,6.6432456]
[1751322441374,0.01,2493.7,2493.6,2.63297932]
[1751322442260,0.01,2493.7,2493.6,6.6432456]
[1751322442460,0.01,2493.7,2493.6,17.4464456]
[1751322452202,0.01,2493.7,2493.6,12.63297932]
[1751322452405,0.01,2493.7,2493.6,14.01026628]
[1751322455506,0.01,2493.7,2493.6,14.79576628]
[1751322460332,0.01,2493.7,2493.6,14.01026628]
[1751322465701,0.01,2493.7,2493.6,14.80386628]
[1751322468760,0.01,2493.7,2493.6,10.0]
[1751322469052,0.01,2493.7,2493.5,0.22]
[1751322469364,0.8039,2493.6,2493.5,0.02]
[1751322469864,4.81416628,2493.6,2493.5,0.02]
[1751322473957,5.1879332,2493.6,2493.5,0.02]
[1751322474162,4.81416628,2493.6,2493.5,0.02]
[1751322478657,0.8039,2493.6,2493.5,0.02]
[1751322478858,0.2,2493.6,2493.5,0.02]
[1751322479028,6.738,2493.6,2493.5,0.02]
[1751322480057,6.737,2493.6,2493.5,0.02]
[1751322481230,0.2,2493.6,2493.5,0.02]
[1751322481462,0.01,2493.7,2493.5,1.54849852]
[1751322481661,6.547,2493.7,2493.6,6.19480009]
[1751322494580,6.547,2493.7,2493.5,0.22]
[1751322494769,6.547,2493.7,2493.5,0.02]
[1751322515417,6.547,2493.7,2493.6,6.19480009]
[1751322519521,4.83416628,2493.6,2493.5,0.02]
[1751322519724,1.0239,2493.6,2493.5,0.02]
[1751322519926,0.2,2493.6,2493.5,0.02]
[1751322524217,4.21026628,2493.6,2493.5,0.02]
[1751322524422,0.2,2493.6,2493.5,0.02]
[1751322524724,5.76963502,2493.6,2493.5,0.02]
[1751322526306,1.75936874,2493.6,2493.5,0.02]
[1751322526625,0.2,2493.6,2493.5,0.02]
[1751322532342,6.5131974,2493.7,2493.5,0.02]
[1751322532844,10.5233147,2493.7,2493.5,0.02]
[1751322533139,6.5131974,2493.7,2493.5,0.02]
[1751322533517,10.52332893,2493.7,2493.5,0.02]
[1751322533716,6.5131974,2493.7,2493.5,0.02]
[1751322533918,10.5233075,2493.7,2493.5,0.02]
[1751322534846,6.5131974,2493.7,2493.5,0.02]
[1751322535043,0.8265,2493.8,2493.5,0.02]
[1751322535221,6.529,2493.7,2493.5,6.21480009]
[1751322536650,0.01,2493.9,2493.7,4.01003187]
[1751322536947,0.01,2493.9,2493.7,10.20483196]
[1751322537853,0.01,2493.9,2493.8,4.00994466]
[1751322538048,0.01,2493.9,2493.8,14.00994466]
[1751322538250,0.01,2493.9,2493.8,14.99144466]
[1751322538443,0.01,2493.9,2493.8,17.51107723]
[1751322548947,0.01,2493.9,2493.8,13.50113257]
[1751322549147,0.01,2493.9,2493.8,16.39480009]
[1751322549456,0.01,2493.9,2493.8,16.19480009]
[1751322549671,0.01,2493.9,2493.5,0.22]
[1751322549672,0.7783,2493.8,2493.5,0.22]
[1751322549859,6.726,2493.7,2493.5,0.02]
[1751322550250,10.73612817,2493.7,2493.5,0.02]
[1751322550485,6.726,2493.7,2493.5,0.02]
[1751322552081,4.83136628,2493.6,2493.5,0.02]
[1751322553690,5.20529566,2493.6,2493.5,0.02]
[1751322558352,10.91019566,2493.6,2493.5,0.02]
[1751322558553,6.89992938,2493.6,2493.5,0.02]
[1751322558992,10.91019566,2493.6,2493.5,0.02]
[1751322559297,10.53626628,2493.6,2493.5,0.02]
[1751322562396,2.197,2493.7,2493.5,0.02]
[1751322562621,6.526,2493.6,2493.5,0.02]
[1751322562909,10.53626628,2493.6,2493.5,0.02]
[1751322563781,6.526,2493.6,2493.5,0.02]
[1751322568280,2.207,2493.7,2493.5,0.02]
[1751322568480,2.007,2493.7,2493.5,0.02]
[1751322568685,6.525,2493.6,2493.5,0.8435]
[1751322569109,6.525,2493.6,2493.5,1.97038642]
[1751322569294,6.525,2493.6,2493.5,5.98071584]
[1751322571091,0.01,2493.7,2493.6,4.01026628]
[1751322571294,6.535,2493.7,2493.6,10.20506637]
[1751322571626,6.535,2493.7,2493.6,6.19480009]
[1751322571830,6.535,2493.7,2493.6,7.83540584]
[1751322574735,6.535,2493.7,2493.6,6.19480009]
[1751322578937,6.535,2493.7,2493.5,0.02]
[1751322579138,7.3522,2493.7,2493.5,0.02]
[1751322579305,6.535,2493.7,2493.5,0.02]
[1751322585246,10.54513124,2493.7,2493.5,0.02]
[1751322586328,6.535,2493.7,2493.5,0.02]
[1751322596424,6.521,2493.6,2493.5,6.88399032]
[1751322597420,0.01,2493.7,2493.6,4.01026628]
[1751322597946,0.01,2493.7,2493.6,21.22926637]
[1751322603366,0.01,2493.9,2493.8,14.00994466]
[1751322603579,0.01,2493.9,2493.8,21.18084475]
[1751322603785,0.01,2493.9,2493.8,24.75296256]
[1751322612397,0.00741,2494.4,2494.1,4.00943845]
[1751322612566,0.00741,2494.4,2494.1,6.19480009]
[1751322612767,4.01645793,2494.4,2494.2,0.2]
[1751322614187,0.00741,2494.4,2494.2,0.2]
[1751322614384,5.69102588,2494.4,2494.2,0.2]
[1751322615720,1.68201514,2494.4,2494.2,0.2]
[1751322616026,0.00741,2494.4,2494.2,0.2]
[1751322616600,0.00741,2494.4,2494.2,4.20928464]
[1751322617485,0.00741,2494.4,2494.2,0.2]
[1751322620006,0.00741,2494.4,2494.2,4.20922502]
[1751322623243,0.00741,2494.4,2494.2,0.2]
[1751322627857,5.09079164,2494.4,2494.2,0.2]
[1751322628012,0.7573,2494.3,2494.0,10.0]
[1751322628209,0.7573,2494.3,2494.0,10.2]
[1751322629944,0.7573,2494.3,2494.0,14.20961236]
[1751322632030,0.7573,2494.3,2494.0,14.20952568]
[1751322635562,0.7573,2494.3,2494.1,4.009444]
[1751322635764,0.7573,2494.3,2494.0,14.2095316]
[1751322636432,0.7573,2494.3,2494.1,4.00945327]
[1751322637457,0.7573,2494.3,2494.0,14.20954152]
[1751322637661,0.7573,2494.3,2494.0,10.2]
[1751322637831,0.7573,2494.3,2494.0,14.20960082]
[1751322638542,0.7573,2494.3,2494.1,4.00942521]
[1751322639244,0.00741,2494.4,2494.2,4.00919609]
[1751322639445,0.00741,2494.4,2494.3,10.20394093]
[1751322640063,0.00741,2494.4,2494.3,20.40394093]
[1751322640368,0.01,2494.5,2494.4,4.80628011]
[1751322641049,0.01,2494.5,2494.4,11.32028011]
[1751322641354,0.01,2494.5,2494.4,14.74503826]
[1751322643567,0.01,2494.5,2494.4,15.04630955]
[1751322644872,0.01,2494.5,2494.4,25.04630955]
[1751322651251,0.01,2494.5,2494.4,25.04430955]
[1751322662389,0.01,2494.7,2494.6,14.7709587]
[1751322662557,0.01,2494.7,2494.6,29.72028667]
[1751322664890,0.01,2494.7,2494.6,29.91810408]
[1751322665493,0.2,2495.8,2494.9,4.77047668]
[1751322665787,1.14018457,2495.7,2495.4,6.19480009]
[1751322665958,0.37468457,2495.6,2495.4,6.19480009]
[1751322666154,0.7655,2495.7,2495.4,10.20216531]
[1751322666359,0.7655,2495.7,2495.5,0.2]
[1751322666992,0.7655,2495.7,2495.5,4.20715212]
[1751322667803,0.7655,2495.7,2495.5,0.2]
[1751322669568,0.3750825,2495.6,2495.5,0.2]
[1751322669793,4.77246405,2495.7,2495.5,0.2]
[1751322669993,1.26274641,2495.7,2495.5,0.2]
[1751322671464,0.7655,2495.7,2495.5,0.2]
[1751322672403,1.988,2496.1,2495.5,0.2]
[1751322672404,0.20945524,2496.5,2495.7,10.0]
[1751322672699,1.16560414,2496.4,2495.9,10.0]
[1751322672905,0.37490414,2496.3,2496.1,0.2]
[1751322673071,0.7907,2496.4,2495.7,10.0]
[1751322673266,0.7907,2496.4,2495.9,10.2]
[1751322673267,0.65246955,2496.3,2495.9,10.2]
[1751322673498,0.27777,2496.3,2495.9,4.20655188]
[1751322673910,0.27777,2496.3,2495.9,4.20656591]
[1751322674112,0.27777,2496.3,2495.9,14.20656591]
[1751322674298,0.65232752,2496.3,2496.0,10.0]
[1751322674497,0.37455752,2496.3,2496.0,10.0]
[1751322674698,2.7777,2496.4,2496.0,10.40111033]
[1751322675086,2.7777,2496.4,2496.0,6.39480009]
[1751322675087,0.7907,2496.4,2496.0,6.39480009]
[1751322675406,1.16523606,2496.4,2496.0,10.40119265]
[1751322675615,0.7907,2496.4,2496.0,10.40119265]
[1751322676379,0.7907,2496.4,2496.1,4.0061717]
[1751322676805,0.7907,2496.4,2496.0,10.40113775]
[1751322677308,0.7907,2496.4,2496.0,20.40113775]
[1751322677683,0.7907,2496.4,2496.0,10.2]
[1751322677978,0.7907,2496.4,2495.6,7.3012]
[1751322677979,0.8271,2496.0,2495.5,4.00712366]
[1751322678306,0.8271,2496.0,2495.8,0.2]
[1751322678810,4.00639152,2496.1,2495.6,10.0]
[1751322678811,0.2,2496.1,2495.6,10.2]
[1751322679014,0.2,2496.1,2494.8,4.00818636]
[1751322679015,0.8271,2495.6,2495.2,0.2]
[1751322679230,0.8271,2495.6,2495.1,4.30259538]
[1751322679231,4.83427889,2495.6,2494.8,4.0082922]
[1751322679512,0.8271,2495.5,2495.1,0.2]
[1751322685332,0.8271,2495.5,2495.1,4.20772158]
[1751322685516,0.8271,2495.5,2495.2,4.00761267]
[1751322685834,0.8271,2495.5,2495.2,0.2]
[1751322686833,0.8271,2495.5,2495.2,4.20768699]
[1751322688636,0.8271,2495.5,2495.2,0.2]
[1751322690446,0.8271,2495.5,2495.2,4.20768804]
[1751322690842,0.8271,2495.5,2495.2,0.2]
[1751322695359,0.2,2495.7,2495.4,4.77277356]
[1751322695652,1.5329202,2496.4,2495.8,4.77202375]
[1751322695653,0.37513841,2496.1,2495.8,4.77202375]
[1751322695858,0.37513841,2496.0,2495.9,6.19480009]
[1751322696166,0.37513841,2496.0,2495.9,10.20137086]
[1751322696454,2.7734,2496.4,2495.9,10.20121675]
[1751322696455,0.37513841,2496.3,2495.9,10.20121675]
[1751322696652,2.7734,2496.4,2495.9,10.20121675]
[1751322696653,0.37513841,2496.2,2496.0,4.00633658]
[1751322696854,2.7734,2496.4,2496.0,4.00633658]
[1751322697153,0.37509088,2496.3,2496.0,4.00633658]
[1751322697360,0.37509088,2496.2,2496.0,4.00633658]
[1751322697563,2.7734,2496.4,2496.0,4.00633658]
[1751322697855,0.3751046,2496.3,2496.0,4.0063933]
[1751322698047,0.3751046,2496.2,2496.0,4.0063933]
[1751322698244,2.7734,2496.4,2496.0,5.50372482]
[1751322698427,0.37512518,2496.3,2496.0,4.0063933]
[1751322698626,0.37512518,2496.2,2495.9,10.201347]
[1751322698825,2.7734,2496.4,2495.9,10.201347]
[1751322699060,0.37512522,2496.3,2495.9,6.19480009]
[1751322699255,0.37512522,2496.2,2495.9,6.19480009]
[1751322699463,6.77928279,2496.4,2495.9,6.19480009]
[1751322699651,0.37515977,2496.3,2495.9,6.19480009]
[1751322699961,0.37515977,2496.2,2495.8,14.7721197]
[1751322700166,6.77925907,2496.4,2495.9,3.15107113]
[1751322700332,0.37517282,2496.3,2495.9,3.15107113]
[1751322700531,0.37517282,2496.2,2495.9,3.15107113]
[1751322700834,2.7734,2496.4,2495.9,7.15762142]
[1751322701054,0.37517267,2496.3,2496.0,4.00640312]
[1751322701257,0.37517267,2496.2,2495.9,3.15107113]
[1751322701441,0.8222,2496.0,2495.2,1.89430544]
[1751322701642,0.8222,2496.0,2495.5,14.00721237]
[1751322701857,4.82861656,2496.0,2495.5,10.0]
[1751322702043,0.8222,2496.0,2495.5,10.0]
[1751322702864,4.82864285,2496.0,2495.5,10.0]
[1751322703863,0.8222,2496.0,2495.5,10.0]
[1751322704032,0.8222,2496.0,2495.6,4.00695666]
[1751322704236,0.8222,2496.0,2495.6,4.78345666]
[1751322704437,0.8222,2496.0,2495.7,4.00680755]
[1751322704673,4.00507692,2496.9,2496.3,4.00592071]
[1751322704860,4.38037786,2496.8,2496.2,6.19480009]
[1751322705164,5.20273856,2496.7,2496.1,16.572]
[1751322705379,0.37515721,2496.6,2496.2,4.00600408]
[1751322705577,0.8222,2496.7,2496.3,0.2]
[1751322705578,0.37515721,2496.5,2496.3,0.2]
[1751322705741,0.37515721,2496.4,2496.3,0.2]
[1751322707357,0.37515721,2496.4,2496.3,14.99872877]
[1751322707678,0.37515721,2496.4,2496.3,17.5186894]
[1751322709179,0.37515721,2496.8,2496.4,10.0]
[1751322709352,0.37510942,2496.7,2496.4,10.0]
[1751322709557,0.37510942,2496.6,2496.4,0.2]
[1751322709766,0.37510942,2496.5,2496.4,0.2]
[1751322710888,0.37510942,2496.5,2496.4,22.9205238]
[1751322711097,0.37510942,2496.8,2496.4,12.9205238]
[1751322711396,0.37510942,2496.7,2496.4,12.9205238]
[1751322711562,0.37510942,2496.6,2496.4,12.9205238]
[1751322711883,0.9699,2496.9,2496.4,12.9205238]
[1751322712049,0.37505639,2496.8,2496.4,12.9205238]
[1751322712245,0.37505639,2496.7,2496.4,12.9205238]
[1751322712446,0.37505639,2496.6,2496.4,12.9205238]
[1751322712649,0.9699,2496.9,2496.4,12.9205238]
[1751322712900,0.37500293,2496.8,2496.4,12.9205238]
[1751322713080,0.9699,2496.9,2496.4,12.9205238]
[1751322713260,0.37488375,2496.8,2496.5,6.43431921]
[1751322713458,0.9699,2496.9,2496.5,6.43431921]
[1751322714065,0.9699,2496.9,2496.5,2.4287219]
[1751322714066,1.3447763,2496.9,2496.5,2.4287219]
[1751322714285,0.9699,2496.9,2496.6,6.19480009]
[1751322714468,0.9874,2497.2,2496.8,6.19480009]
[1751322714655,0.37474093,2497.1,2496.8,6.19480009]
[1751322715469,0.37474093,2497.1,2496.8,11.64046907]
[1751322715665,0.37474093,2497.1,2496.9,0.2]
[1751322716148,1.16214093,2497.2,2496.9,0.2]
[1751322717291,5.16664271,2497.2,2496.9,0.2]
[1751322717586,0.7874,2497.2,2496.9,0.2]
[1751322717787,1.16173994,2497.2,2496.9,0.2]
[1751322719189,0.7874,2497.2,2496.9,0.2]
[1751322719390,1.16173994,2497.2,2496.9,0.2]
[1751322720194,5.16623914,2497.2,2496.9,0.2]
[1751322720361,0.37433994,2497.1,2496.9,0.2]
[1751322720568,0.7874,2497.2,2496.9,0.2]
[1751322720796,1.16173994,2497.2,2496.9,0.70173207]
[1751322721398,5.16623147,2497.2,2496.9,0.70173207]
[1751322721571,4.37908707,2497.1,2496.9,0.2]
[1751322721771,4.00474713,2497.1,2496.9,0.2]
[1751322723071,4.79196654,2497.2,2496.9,0.2]
[1751322724602,4.00465527,2497.1,2496.9,0.2]
[1751322725315,0.2,2497.4,2496.9,10.39970056]
[1751322725316,4.00423367,2497.4,2496.9,10.39970056]
[1751322725617,4.00423367,2497.4,2496.9,7.91534168]
[1751322725788,4.00423367,2497.4,2497.1,0.2]
[1751322726185,4.00448502,2497.2,2497.1,0.2]
[1751322726580,4.00438635,2497.3,2497.1,0.2]
[1751322727918,4.00448502,2497.2,2497.1,0.2]
[1751322728904,4.00448502,2497.2,2496.9,0.2]
[1751322729305,0.2,2497.3,2496.9,0.2]
[1751322729306,4.20442405,2497.3,2496.9,0.2]
[1751322729491,4.00436009,2497.3,2496.7,11.00049321]
[1751322729695,4.00436009,2497.3,2497.0,0.2]
[1751322731391,4.00448749,2497.2,2496.7,0.8005]
[1751322731591,4.00448749,2497.2,2496.9,0.2]
[1751322732198,6.544,2497.1,2496.3,0.78]
[1751322732519,0.7637,2496.8,2496.0,4.00633744]
[1751322732825,0.7637,2496.8,2496.1,10.0]
[1751322732826,0.2,2496.5,2496.1,10.0]
[1751322732988,4.20561343,2496.5,2496.0,0.2]
[1751322733186,4.20561343,2496.5,2496.0,10.2]
[1751322733386,0.2,2496.5,2496.0,14.20639097]
[1751322733709,4.2056079,2496.5,2496.0,10.2]
[1751322734088,4.2056079,2496.5,2496.0,11.69864953]
[1751322734708,4.0058135,2496.4,2496.0,11.69864953]
[1751322734896,4.20566402,2496.5,2496.0,5.70505955]
[1751322735219,4.20566402,2496.5,2496.0,1.69864953]
[1751322736184,0.7637,2496.4,2496.0,0.2]
[1751322736396,4.76947497,2496.4,2496.0,0.2]
[1751322736717,0.7637,2496.4,2496.0,0.2]
[1751322736916,0.7637,2496.4,2495.7,0.8257]
[1751322737117,6.55,2496.7,2495.9,10.2]
[1751322737118,0.2,2496.3,2495.9,10.2]
[1751322737322,4.00577301,2496.4,2496.0,0.2]
[1751322737709,4.00628495,2496.1,2495.7,10.8257]
[1751322737922,4.00628495,2496.1,2495.6,4.00695916]
[1751322737923,4.00628495,2496.1,2495.8,0.2]
[1751322738093,4.00632405,2496.1,2495.8,0.2]
[1751322739517,11.36151281,2496.2,2495.8,0.2]
[1751322739707,7.3554,2496.2,2495.8,0.2]
[1751322740425,7.3554,2496.2,2495.8,4.20671389]
[1751322740926,7.3554,2496.2,2495.9,10.0]
[1751322741290,0.7877,2496.9,2496.1,20.20098139]
[1751322741530,0.2,2496.7,2496.3,4.00592349]
[1751322742307,0.2,2496.7,2496.4,4.00576459]
[1751322743417,0.2,2496.7,2496.4,10.0]
[1751322743807,0.2,2496.7,2496.4,14.00573574]
[1751322744899,0.2,2496.7,2496.3,14.00586231]
[1751322745103,0.2,2496.7,2496.4,4.00576684]
[1751322745605,0.2,2496.7,2496.3,11.82118275]
[1751322746115,0.2,2496.7,2496.4,4.00576428]
[1751322746318,0.2,2496.7,2496.3,15.8270298]
[1751322746924,0.2,2496.7,2496.4,4.00575132]
[1751322748435,0.2,2496.7,2496.4,6.62852768]
[1751322748612,6.549,2496.8,2496.5,4.00552546]
[1751322748817,0.2,2496.9,2496.6,4.00542964]
[1751322749019,6.749,2496.9,2496.4,13.77538103]
[1751322749218,6.749,2496.9,2496.5,4.00553755]
[1751322749412,6.749,2496.9,2496.5,4.00545095]
[1751322750839,6.749,2496.9,2496.4,13.77541858]
[1751322750840,6.749,2496.9,2496.4,13.7753461]
[1751322751338,6.749,2496.9,2496.5,4.00560312]
[1751322752253,0.2,2496.9,2496.5,4.00560312]
[1751322752408,6.747,2496.9,2496.4,9.76967645]
[1751322752608,6.747,2496.9,2496.5,10.97696765]
[1751322752812,6.747,2496.9,2496.5,14.98247604]
[1751322753342,6.745,2496.9,2496.7,4.00528636]
[1751322753850,6.745,2496.9,2496.6,4.00536671]
[1751322755153,0.2,2496.9,2496.7,4.00527298]
[1751322755448,2.208,2497.2,2496.8,5.02509507]
[1751322755628,2.208,2497.2,2496.9,10.0]
[1751322755629,6.91691092,2497.1,2496.9,10.0]
[1751322755945,0.37491092,2497.0,2496.9,10.0]
[1751322756634,0.37491092,2497.0,2496.9,14.00496615]
[1751322756849,0.37491092,2497.0,2496.9,4.00496615]
[1751322757052,0.37491092,2497.0,2496.9,1.90045374]
[1751322757357,0.37491092,2497.0,2496.9,6.10541989]
[1751322757849,0.37491092,2497.3,2497.0,4.00478066]
[1751322758047,0.37491092,2497.2,2497.0,4.00478066]
[1751322758225,8.748,2497.4,2497.0,4.00478066]
[1751322758428,0.37500284,2497.3,2496.9,6.10533553]
[1751322758650,2.208,2497.4,2497.0,6.41527937]
[1751322758852,0.375019,2497.3,2497.0,6.41527937]
[1751322759048,8.749,2497.4,2497.0,6.41527937]
[1751322759330,0.37501971,2497.3,2497.0,6.41527937]
[1751322759663,8.749,2497.4,2497.0,2.41048263]
[1751322759863,0.37499572,2497.3,2497.0,2.41048263]
[1751322760163,12.75317847,2497.4,2497.0,2.41048263]
[1751322760362,0.37501202,2497.3,2497.0,2.41048263]
[1751322760526,12.75317847,2497.4,2497.0,2.41048263]
[1751322760731,0.37497529,2497.3,2496.9,16.10532563]
[1751322760931,12.75317847,2497.4,2496.9,16.10532563]
[1751322761158,12.75317847,2497.4,2496.9,12.10045374]
[1751322761159,4.3793114,2497.3,2496.9,12.10045374]
[1751322761366,4.00433611,2497.3,2496.9,12.10045374]
[1751322761534,12.75325827,2497.4,2496.9,12.10045374]
[1751322761858,0.37495755,2497.3,2496.9,12.10045374]
[1751322762066,12.75325827,2497.4,2496.9,12.10045374]
[1751322762259,0.37495722,2497.3,2496.9,12.10045374]
[1751322762464,4.00433366,2497.3,2496.9,12.10045374]
[1751322762765,4.00452865,2497.2,2496.9,10.2]
[1751322762936,0.813,2497.1,2496.9,10.0]
[1751322764448,0.813,2497.1,2496.8,0.2]
[1751322764849,6.537,2497.0,2496.8,0.2]
[1751322766065,6.537,2497.0,2496.7,0.2]
[1751322766263,10.541878,2497.0,2496.7,0.2]
[1751322766471,4.00497174,2496.9,2496.7,0.2]
[1751322766974,10.54189737,2497.0,2496.7,0.2]
[1751322767360,6.537,2497.0,2496.7,0.2]
[1751322767555,6.537,2497.0,2496.7,10.2]
[1751322768841,6.537,2497.0,2496.7,0.2]
[1751322769671,6.537,2497.0,2496.7,10.2]
[1751322769855,10.54183802,2497.0,2496.7,0.2]
[1751322770573,6.537,2497.0,2496.7,0.2]
[1751322771291,4.00480727,2497.0,2496.7,0.2]
[1751322771569,10.53687463,2497.0,2496.7,0.2]
[1751322771773,6.532,2497.0,2496.7,0.2]
[1751322772342,6.532,2497.0,2496.7,10.2]
[1751322773041,6.532,2497.0,2496.7,0.2]
[1751322775581,10.53690129,2497.0,2496.7,0.2]
[1751322776554,6.532,2497.0,2496.7,0.2]
[1751322777988,5.01774472,2497.1,2496.7,0.2]
[1751322778182,6.525,2497.0,2496.7,14.20527556]
[1751322778347,6.525,2497.0,2496.7,0.2]
[1751322778547,6.525,2497.0,2496.7,10.2]
[1751322785701,10.52995191,2497.0,2496.7,10.2]
[1751322786611,6.525,2497.0,2496.7,10.2]
[1751322787582,10.52994352,2497.0,2496.7,10.2]
[1751322787915,10.52994537,2497.0,2496.7,0.2]
[1751322788215,6.525,2497.0,2496.7,0.2]
[1751322788915,6.525,2497.0,2496.7,10.2]
[1751322790219,10.52982867,2497.0,2496.7,0.2]
[1751322790788,4.00512656,2496.8,2496.7,0.2]
[1751322790988,0.2,2496.8,2496.4,0.2]
[1751322791188,6.514,2496.7,2496.5,10.0]
[1751322791907,6.514,2496.7,2496.4,0.2]
[1751322794923,6.514,2496.7,2496.5,10.0]
[1751322796633,6.514,2496.7,2496.4,0.2]
[1751322796832,6.514,2496.7,2496.4,10.2]
[1751322799612,10.5193221,2496.7,2496.4,0.2]
[1751322799812,4.00546531,2496.6,2496.4,0.2]
[1751322800014,10.51938499,2496.7,2496.4,0.2]
[1751322800641,4.00545611,2496.6,2496.4,0.2]
[1751322800836,10.51942249,2496.7,2496.4,0.2]
[1751322801535,4.00548678,2496.6,2496.4,0.2]
[1751322801728,1.55173093,2496.6,2496.4,0.2]
[1751322802131,5.557315,2496.6,2496.4,0.2]
[1751322802912,1.55173093,2496.6,2496.4,0.2]
[1751322803338,0.9924,2496.8,2496.4,0.2]
[1751322803636,6.514,2496.7,2496.4,7.14710009]
[1751322803840,6.514,2496.6,2496.4,20.95273688]
[1751322804238,6.514,2496.6,2496.5,0.2]
[1751322805415,6.514,2496.6,2496.5,4.20560785]
[1751322805825,6.514,2496.6,2496.5,0.2]
[1751322806245,6.514,2496.6,2496.5,4.20560785]
[1751322806746,6.514,2496.6,2496.5,0.2]
[1751322807151,6.514,2496.6,2496.5,4.20560785]
[1751322807333,6.514,2496.6,2496.5,6.72144593]
[1751322808223,6.514,2496.6,2496.5,2.71583808]
[1751322808524,6.514,2496.6,2496.5,0.2]
[1751322809454,6.514,2496.6,2496.5,4.96280785]
[1751322810522,6.514,2496.6,2496.5,0.9572]
[1751322811042,6.514,2496.6,2496.5,4.96280785]
[1751322812150,6.514,2496.6,2496.5,14.96280785]
[1751322813155,6.514,2496.6,2496.5,17.47914153]
[1751322813956,6.514,2496.6,2496.5,10.2]
[1751322820081,6.514,2496.6,2496.5,10.0]